fUST/lending_fUST_20250227
["ID","MTS","AMOUNT","RATE_DAILY","PERIOD"]
[354665225,1740606657982,-151.0,0.001,120]
[354665226,1740606657992,-221.332388,0.001,120]
[354665227,1740606658002,-221.332388,0.001,120]
[354665228,1740606658012,-151.0,0.001,120]
[354665229,1740606658023,-151.0,0.001,120]
[354665230,1740606658034,-193.728609,0.001,120]
[354665231,1740606658043,-193.728609,0.001,120]
[354665232,1740606658053,-151.0,0.001,120]
[354665233,1740606658066,-1450.966292,0.001,120]
[354665234,1740606658076,-1450.966292,0.001,120]
[354665235,1740606658086,-284.688812,0.001,120]
[354665236,1740606658095,-284.688812,0.001,120]
[354665237,1740606658105,-156.47,0.001,60]
[354665238,1740606658115,-277.25,0.001,60]
[354665239,1740606658126,-338.74,0.001,60]
[354665240,1740606658138,-158.54,0.001,60]
[354665241,1740606658148,-156.69,0.001,60]
[354665242,1740606658158,-151.0,0.001,120]
[354665243,1740606658168,-3910.88,0.0010219,120]
[354665244,1740606658178,-456.76455562,0.001029,7]
[354665245,1740606658187,-3910.88,0.00107669,120]
[354665246,1740606658197,-456.76455562,0.001079,7]
[354665247,1740606658206,-500.0,0.00109589,120]
[354665248,1740606658216,-171.092,0.0011,120]
[354665249,1740606658225,-500.0,0.00111031,120]
[354665250,1740606658235,-500.0,0.00112473,120]
[354665251,1740606658244,-3910.88,0.00113149,120]
[354665252,1740606658253,-500.0,0.00113915,120]
[354665253,1740606658263,-500.0,0.00115357,120]
[354665254,1740606658272,-500.0,0.00116799,120]
[354665255,1740606658281,-500.0,0.00118241,120]
[354665256,1740606658290,-3910.88,0.00118628,120]
[354665257,1740606658301,-500.0,0.00119683,120]
[354665258,1740606658312,-500.0,0.00121125,120]
[354665259,1740606658321,-500.0,0.00122567,120]
[354665260,1740606658331,-500.0,0.00124009,120]
[354665261,1740606658340,-3910.88,0.00124108,120]
[354665262,1740606658350,-500.0,0.00125451,120]
[354665263,1740606658359,-500.0,0.00126893,120]
[354665264,1740606658369,-500.0,0.00128335,120]
[354665265,1740606658378,-3910.88,0.00129587,120]
[354665266,1740606658388,-500.0,0.00129777,120]
[354665267,1740606658398,-156.47,0.0013,60]
[354665268,1740606658407,-500.0,0.00131219,120]
[354665269,1740606658418,-277.25,0.00132,60]
[354665270,1740606658428,-338.74,0.00132,60]
[354665271,1740606658437,-500.0,0.00132661,120]
[354665272,1740606658447,-500.0,0.00134103,120]
[354665273,1740606658457,-3910.88,0.00135067,120]
[354665274,1740606658466,-500.0,0.00135545,120]
[354665275,1740606658476,-500.0,0.00136987,120]
[354665276,1740606658486,-3910.88,0.00140546,120]
[354665277,1740606658496,-1198.599999,0.00145,120]
[354665278,1740606658506,-3910.88,0.00146026,120]
[354665279,1740606658516,-10000.0,0.0015,120]
[354665280,1740606658526,-1000000.0,0.0015,120]
[354665281,1740606658535,-1000000.0,0.0015,120]
[354665282,1740606658545,-151.0,0.0015,120]
[354665283,1740606658555,-151.0,0.0015,120]
[354665284,1740606658566,-151.0,0.0015,120]
[354665285,1740606658575,-151.0,0.0015,120]
[354665286,1740606658584,-364.037634,0.0015,120]
[354665287,1740606658594,-364.037634,0.0015,120]
[354665288,1740606658603,-151.0,0.0015,120]
[354665289,1740606658613,-151.0,0.0015,120]
[354665290,1740606658623,-151.0,0.0015,120]
[354665291,1740606658632,-151.0,0.0015,120]
[354665292,1740606658642,-151.0,0.0015,120]
[354665293,1740606658652,-151.0,0.0015,120]
[354665294,1740606658663,-1327.796451,0.0015,120]
[354665295,1740606658675,-1327.796451,0.0015,120]
[354665296,1740606658686,-151.0,0.0015,120]
[354665297,1740606658695,-151.0,0.0015,120]
[354665298,1740606658705,-151.0,0.0015,120]
[354665299,1740606658715,-151.0,0.0015,120]
[354665300,1740606658726,-151.0,0.0015,120]
[354665301,1740606658736,-221.332388,0.0015,120]
[354665302,1740606658746,-221.332388,0.0015,120]
[354665303,1740606658756,-221.332388,0.0015,120]
[354665304,1740606658767,-151.0,0.0015,120]
[354665305,1740606658776,-221.332388,0.0015,120]
[354665306,1740606658786,-151.0,0.0015,120]
[354665307,1740606658795,-151.0,0.0015,120]
[354665308,1740606658804,-255.475525,0.0015,120]
[354665309,1740606658816,-193.728609,0.0015,120]
[354665310,1740606658826,-193.728609,0.0015,120]
[354665311,1740606658835,-193.728609,0.0015,120]
[354665312,1740606658845,-193.728609,0.0015,120]
[354665313,1740606658854,-151.0,0.0015,120]
[354665314,1740606658863,-151.0,0.0015,120]
[354665315,1740606658873,-1450.966292,0.0015,120]
[354665316,1740606658882,-1450.966292,0.0015,120]
[354665317,1740606658892,-1450.966292,0.0015,120]
[354665318,1740606658901,-1450.966292,0.0015,120]
[354665319,1740606658911,-284.688812,0.0015,120]
[354665320,1740606658919,-284.688812,0.0015,120]
[354665321,1740606658929,-284.688812,0.0015,120]
[354665322,1740606658938,-284.688812,0.0015,120]
[354665323,1740606658947,-151.0,0.0015,120]
[354665324,1740606658957,-151.0,0.0015,120]
[354665325,1740606658965,-151.0,0.0015,120]
[354665326,1740606658974,-196.201568,0.0015,120]
[354665327,1740606658984,-151.0,0.0015,120]
[354665328,1740606658993,-351.191546,0.0015,120]
[354665329,1740606659002,-351.191546,0.0015,120]
[354665330,1740606659012,-151.0,0.0015,120]
[354665331,1740606659021,-151.0,0.0015,120]
[354665332,1740606659031,-151.0,0.0015,120]
[354665333,1740606659041,-3910.88,0.00151505,120]
[354665334,1740606659050,-502.522,0.00153092,30]
[354665335,1740606659061,-2200.0,0.00153092,120]
[354665336,1740606659071,-3910.88,0.00156984,120]
[354665337,1740606659080,-150.0,0.00157133,120]
[354665338,1740606659090,-316.84,0.00157133,120]
[354665339,1740606659099,-150.0,0.00160133,120]
[354665340,1740606659109,-3910.88,0.00162464,120]
[354665341,1740606659118,-150.0,0.00163133,120]
[354665342,1740606659127,-150.0,0.00166133,120]
[354665343,1740606659136,-3910.88,0.00167943,120]
[354665344,1740606659146,-3910.88,0.00173423,120]
[354665345,1740606659155,-3910.88,0.00178902,120]
[354665346,1740606659165,-3910.88,0.00184382,120]
[354665347,1740606659175,-3910.88,0.00189861,120]
[354665348,1740606659184,-1220.80267729,0.001919,28]
[354665349,1740606659195,-338.74,0.00192,60]
[354665350,1740606659205,-277.25,0.00194,60]
[354665351,1740606659215,-3910.88,0.00195341,120]
[354665352,1740606659225,-1000000.0,0.002,120]
[354665353,1740606659235,-500000.0,0.002,120]
[354665354,1740606659247,-151.0,0.002,120]
[354665355,1740606659258,-151.0,0.002,120]
[354665356,1740606659268,-364.037634,0.002,120]
[354665357,1740606659277,-364.037634,0.002,120]
[354665358,1740606659287,-151.0,0.002,120]
[354665359,1740606659297,-151.0,0.002,120]
[354665360,1740606659309,-1327.796451,0.002,120]
[354665361,1740606659323,-1327.796451,0.002,120]
[354665362,1740606659333,-151.0,0.002,120]
[354665363,1740606659436,-221.332388,0.002,120]
[354665364,1740606659447,-253.782,0.002,120]
[354665365,1740606659457,-221.332388,0.002,120]
[354665366,1740606659467,-193.728609,0.002,120]
[354665367,1740606659477,-193.728609,0.002,120]
[354665368,1740606659487,-151.0,0.002,120]
[354665369,1740606659496,-1450.966292,0.002,120]
[354665370,1740606659506,-1450.966292,0.002,120]
[354665371,1740606659515,-284.688812,0.002,120]
[354665372,1740606659525,-284.688812,0.002,120]
[354665373,1740606659534,-156.47,0.002,60]
[354665374,1740606659544,-151.0,0.002,120]
[354665375,1740606659552,-151.0,0.002,120]
[354665376,1740606659563,-151.0,0.002,120]
[354665377,1740606659572,-151.0,0.002,120]
[354665378,1740606659582,-351.191546,0.002,120]
[354665379,1740606659591,-351.191546,0.002,120]
[354665380,1740606659600,-214.696278,0.002,120]
[354665381,1740606659610,-151.0,0.002,120]
[354665382,1740606659619,-151.0,0.002,120]
[354665383,1740606659631,-193.464242,0.002,120]
[354665384,1740606659642,-405.815869,0.002,110]
[354665385,1740606659653,-151.0,0.002,120]
[354665386,1740606659663,-151.0,0.002,30]
[354665387,1740606659677,-405.815869,0.002,110]
[354665388,1740606659687,-278.38996,0.002,120]
[354665389,1740606659696,-151.0,0.002,120]
[354665390,1740606659706,-151.0,0.002,120]
[354665391,1740606659715,-151.0,0.002,120]
[354665392,1740606659724,-2770.52686809,0.002257,120]
[354665393,1740606659733,-160.0,0.00228558,120]
[354665394,1740606659743,-1000000.0,0.0025,120]
[354665395,1740606659758,-151.0,0.0025,120]
[354665396,1740606659768,-151.0,0.0025,120]
[354665397,1740606659778,-364.037634,0.0025,120]
[354665398,1740606659788,-364.037634,0.0025,120]
[354665399,1740606659797,-151.0,0.0025,120]
[354665400,1740606659808,-151.0,0.0025,120]
[354665401,1740606659821,-1327.796451,0.0025,120]
[354665402,1740606659830,-1327.796451,0.0025,120]
[354665403,1740606659840,-221.332388,0.0025,120]
[354665404,1740606659850,-221.332388,0.0025,120]
[354665405,1740606659861,-193.728609,0.0025,120]
[354665406,1740606659870,-193.728609,0.0025,120]
[354665407,1740606659879,-151.0,0.0025,120]
[354665408,1740606659888,-1450.966292,0.0025,120]
[354665409,1740606659898,-1450.966292,0.0025,120]
[354665410,1740606659909,-284.688812,0.0025,120]
[354665411,1740606659918,-284.688812,0.0025,120]
[354665412,1740606659927,-151.0,0.0025,120]
[354665413,1740606659937,-151.0,0.0025,120]
[354665414,1740606659947,-151.0,0.0025,120]
[354665415,1740606659957,-351.191546,0.0025,120]
[354665416,1740606659966,-351.191546,0.0025,120]
[354665417,1740606659976,-151.0,0.0025,120]
[354665418,1740606659986,-151.0,0.0025,120]
[354665419,1740606659997,-500.0,0.0025,30]
[354665420,1740606660006,-500.0,0.0025,30]
[354665421,1740606660016,-500.0,0.0025,30]
[354665422,1740606660026,-500.0,0.0025,30]
[354665423,1740606660036,-500.0,0.0025,30]
[354665424,1740606660045,-500.0,0.0025,30]
[354665425,1740606660055,-500.0,0.0025,30]
[354665426,1740606660066,-500.0,0.0025,30]
[354665427,1740606660076,-500.0,0.0025,30]
[354665428,1740606660086,-500.0,0.0025,30]
[354665429,1740606660096,-500.0,0.0025,30]
[354665430,1740606660105,-500.0,0.0025,30]
[354665431,1740606660115,-500.0,0.0025,30]
[354665432,1740606660124,-500.0,0.0025,30]
[354665433,1740606660134,-500.0,0.0025,30]
[354665434,1740606660143,-500.0,0.0025,30]
[354665435,1740606660152,-500.0,0.0025,30]
[354665436,1740606660162,-500.0,0.0025,30]
[354665437,1740606660171,-500.0,0.0025,30]
[354665438,1740606660181,-500.0,0.0025,30]
[354665439,1740606660191,-500.0,0.0025,30]
[354665440,1740606660200,-500.0,0.0025,30]
[354665441,1740606660210,-405.815869,0.0025,110]
[354665442,1740606660219,-500.0,0.0025,30]
[354665443,1740606660228,-426.959391,0.0025,30]
[354665444,1740606660238,-151.0,0.0025,120]
[354665445,1740606660247,-405.815869,0.0025,110]
[354665446,1740606660256,-151.0,0.0025,30]
[354665447,1740606660265,-151.0,0.0025,120]
[354665448,1740606660275,-150.0,0.00255251,14]
[354665449,1740606660284,-250.02784012,0.00255251,14]
[354665450,1740606660294,-500.0,0.002661,14]
[354665451,1740606660304,-1000.0,0.00271579,14]
[354665452,1740606660313,-500.0,0.00273972,120]
[354665453,1740606660322,-151.0,0.00273973,120]
[354665454,1740606660332,-151.0,0.00273973,120]
[354665455,1740606660341,-151.0,0.00273973,120]
[354665456,1740606660351,-151.0,0.00273973,120]
[354665457,1740606660360,-151.0,0.00273973,120]
[354665458,1740606660369,-151.0,0.00273973,120]
[354665459,1740606660379,-151.0,0.00273973,120]
[354665460,1740606660389,-151.0,0.00273973,120]
[354665461,1740606660399,-151.0,0.00273973,120]
[354665462,1740606660408,-151.0,0.00273973,120]
[354665463,1740606660416,-151.0,0.00273973,120]
[354665464,1740606660425,-296.118646,0.00273973,120]
[354665465,1740606660435,-364.037634,0.00273973,120]
[354665466,1740606660444,-364.037634,0.00273973,120]
[354665467,1740606660454,-364.037634,0.00273973,120]
[354665468,1740606660463,-364.037634,0.00273973,120]
[354665469,1740606660473,-364.037634,0.00273973,120]
[354665470,1740606660483,-364.037634,0.00273973,120]
[354665471,1740606660492,-364.037634,0.00273973,120]
[354665472,1740606660501,-364.037634,0.00273973,120]
[354665473,1740606660511,-364.037634,0.00273973,120]
[354665474,1740606660521,-364.037634,0.00273973,120]
[354665475,1740606660530,-364.037634,0.00273973,120]
[354665476,1740606660539,-364.037634,0.00273973,120]
[354665477,1740606660549,-364.037634,0.00273973,120]
[354665478,1740606660558,-151.0,0.00273973,120]
[354665479,1740606660569,-151.0,0.00273973,120]
[354665480,1740606660579,-151.0,0.00273973,120]
[354665481,1740606660589,-151.0,0.00273973,120]
[354665482,1740606660598,-151.0,0.00273973,120]
[354665483,1740606660608,-151.0,0.00273973,120]
[354665484,1740606660618,-151.0,0.00273973,120]
[354665485,1740606660627,-151.0,0.00273973,120]
[354665486,1740606660637,-151.0,0.00273973,120]
[354665487,1740606660647,-234.864264,0.00273973,120]
[354665488,1740606660658,-1327.796451,0.00273973,120]
[354665489,1740606660668,-1327.796451,0.00273973,120]
[354665490,1740606660679,-1327.796451,0.00273973,120]
[354665491,1740606660688,-1327.796451,0.00273973,120]
[354665492,1740606660698,-1327.796451,0.00273973,120]
[354665493,1740606660710,-1327.796451,0.00273973,120]
[354665494,1740606660721,-1327.796451,0.00273973,120]
[354665495,1740606660731,-1327.796451,0.00273973,120]
[354665496,1740606660740,-1327.796451,0.00273973,120]
[354665497,1740606660750,-1327.796451,0.00273973,120]
[354665498,1740606660759,-1327.796451,0.00273973,120]
[354665499,1740606660769,-1327.796457,0.00273973,120]
[354665500,1740606660778,-221.332388,0.00273973,120]
[354665501,1740606660788,-221.332388,0.00273973,120]
[354665502,1740606660797,-221.332388,0.00273973,120]
[354665503,1740606660807,-221.332388,0.00273973,120]
[354665504,1740606660817,-221.332388,0.00273973,120]
[354665505,1740606660826,-221.332388,0.00273973,120]
[354665506,1740606660836,-221.332388,0.00273973,120]
[354665507,1740606660848,-221.332388,0.00273973,120]
[354665508,1740606660858,-221.332388,0.00273973,120]
[354665509,1740606660868,-221.332395,0.00273973,120]
[354665510,1740606660877,-193.728609,0.00273973,120]
[354665511,1740606660886,-193.728609,0.00273973,120]
[354665512,1740606660897,-193.728609,0.00273973,120]
[354665513,1740606660906,-193.728609,0.00273973,120]
[354665514,1740606660917,-193.728609,0.00273973,120]
[354665515,1740606660927,-193.728609,0.00273973,120]
[354665516,1740606660938,-193.728609,0.00273973,120]
[354665517,1740606660947,-193.728609,0.00273973,120]
[354665518,1740606660956,-252.086655,0.00273973,120]
[354665519,1740606660965,-193.728609,0.00273973,120]
[354665520,1740606660975,-193.728617,0.00273973,120]
[354665521,1740606660984,-1450.966292,0.00273973,120]
[354665522,1740606660994,-1450.966292,0.00273973,120]
[354665523,1740606661004,-1450.966292,0.00273973,120]
[354665524,1740606661013,-1450.966292,0.00273973,120]
[354665525,1740606661023,-1450.966292,0.00273973,120]
[354665526,1740606661032,-1450.966292,0.00273973,120]
[354665527,1740606661041,-1450.966292,0.00273973,120]
[354665528,1740606661050,-1450.966292,0.00273973,120]
[354665529,1740606661059,-1450.966292,0.00273973,120]
[354665530,1740606661070,-1450.966296,0.00273973,120]
[354665531,1740606661080,-284.688812,0.00273973,120]
[354665532,1740606661089,-284.688812,0.00273973,120]
[354665533,1740606661100,-284.688812,0.00273973,120]
[354665534,1740606661109,-284.688812,0.00273973,120]
[354665535,1740606661119,-284.688812,0.00273973,120]
[354665536,1740606661128,-284.688812,0.00273973,120]
[354665537,1740606661138,-284.688812,0.00273973,120]
[354665538,1740606661148,-284.688812,0.00273973,120]
[354665539,1740606661159,-284.688812,0.00273973,120]
[354665540,1740606661168,-151.0,0.00273973,120]
[354665541,1740606661178,-151.0,0.00273973,120]
[354665542,1740606661187,-151.0,0.00273973,120]
[354665543,1740606661197,-151.0,0.00273973,120]
[354665544,1740606661206,-151.0,0.00273973,120]
[354665545,1740606661216,-151.0,0.00273973,120]
[354665546,1740606661226,-151.0,0.00273973,120]
[354665547,1740606661237,-151.0,0.00273973,120]
[354665548,1740606661249,-151.0,0.00273973,120]
[354665549,1740606661259,-229.640506,0.00273973,120]
[354665550,1740606661270,-151.0,0.00273973,120]
[354665551,1740606661280,-151.0,0.00273973,120]
[354665552,1740606661289,-151.0,0.00273973,120]
[354665553,1740606661299,-159.501464,0.00273973,120]
[354665554,1740606661308,-351.191546,0.00273973,120]
[354665555,1740606661318,-351.191546,0.00273973,120]
[354665556,1740606661327,-351.191546,0.00273973,120]
[354665557,1740606661337,-351.191546,0.00273973,120]
[354665558,1740606661346,-351.191546,0.00273973,120]
[354665559,1740606661355,-351.191546,0.00273973,120]
[354665560,1740606661364,-351.191546,0.00273973,120]
[354665561,1740606661373,-351.191546,0.00273973,120]
[354665562,1740606661382,-351.191546,0.00273973,120]
[354665563,1740606661392,-351.191546,0.00273973,120]
[354665564,1740606661401,-351.191546,0.00273973,120]
[354665565,1740606661410,-351.191546,0.00273973,120]
[354665566,1740606661419,-351.191546,0.00273973,120]
[354665567,1740606661429,-351.191556,0.00273973,120]
[354665568,1740606661439,-151.0,0.00273973,120]
[354665569,1740606661450,-151.0,0.00273973,120]
[354665570,1740606661459,-151.0,0.00273973,120]
[354665571,1740606661468,-151.0,0.00273973,120]
[354665572,1740606661477,-151.0,0.00273973,120]
[354665573,1740606661486,-174.982771,0.00273973,120]
[354665574,1740606661494,-240.304577,0.00273973,120]
[354665575,1740606661503,-405.815869,0.00273973,110]
[354665576,1740606661512,-405.815869,0.00273973,110]
[354665577,1740606661521,-405.815869,0.00273973,110]
[354665578,1740606661530,-151.0,0.00273973,120]
[354665579,1740606661539,-151.0,0.00273973,120]
[354665580,1740606661548,-405.815869,0.00273973,110]
[354665581,1740606661557,-151.0,0.00273973,120]
[354665582,1740606661567,-151.0,0.00273973,120]
[354665583,1740606661576,-151.0,0.00273973,120]
[354665584,1740606661585,-405.815869,0.00273973,110]
[354665585,1740606661595,-159.911144,0.00273973,120]
[354665586,1740606661604,-405.815869,0.00273973,110]
[354665587,1740606661613,-405.815869,0.00273973,110]
[354665588,1740606661622,-405.815869,0.00273973,110]
[354665589,1740606661631,-405.815869,0.00273973,110]
[354665590,1740606661640,-151.0,0.00273973,30]
[354665591,1740606661651,-405.815869,0.00273973,110]
[354665592,1740606661660,-405.815869,0.00273973,110]
[354665593,1740606661673,-151.0,0.00273973,30]
[354665594,1740606661682,-405.815869,0.00273973,110]
[354665595,1740606661692,-151.0,0.00273973,30]
[354665596,1740606661701,-405.815869,0.00273973,110]
[354665597,1740606661713,-151.0,0.00273973,30]
[354665598,1740606661722,-405.815869,0.00273973,110]
[354665599,1740606661817,-151.0,0.00273973,30]
[354665600,1740606661827,-405.815869,0.00273973,110]
[354665601,1740606661837,-276.501246,0.00273973,30]
[354665602,1740606661847,-405.815869,0.00273973,110]
[354665603,1740606661855,-151.0,0.00273973,120]
[354665604,1740606661864,-151.0,0.00273973,120]
[354665605,1740606661874,-1500.0,0.00281598,14]
[354665606,1740606661883,-1220.80267729,0.002839,28]
[354665607,1740606661893,-277.73,0.002852,87]
[354665608,1740606661902,-277.73,0.002852,87]
[354665609,1740606661912,-277.73,0.002852,87]
[354665610,1740606661921,-277.73,0.002852,87]
[354665611,1740606661931,-277.73,0.002852,87]
[354665612,1740606661940,-277.73,0.002852,87]
[354665613,1740606661949,-277.73,0.002852,87]
[354665614,1740606661958,-277.73,0.002852,87]
[354665615,1740606661967,-277.73,0.002852,87]
[354665616,1740606661977,-277.73,0.002852,87]
[354665617,1740606661986,-277.73,0.002852,87]
[354665618,1740606661995,-277.73,0.002852,87]
[354665619,1740606662005,-277.73,0.002852,87]
[354665620,1740606662015,-277.73,0.002852,87]
[354665621,1740606662024,-277.73,0.002852,87]
[354665622,1740606662033,-277.73,0.002852,87]
[354665623,1740606662043,-277.73,0.002852,87]
[354665624,1740606662052,-277.73,0.002852,87]
[354665625,1740606662061,-277.73,0.002852,87]
[354665626,1740606662070,-277.73,0.002852,87]
[354665627,1740606662079,-277.73,0.002852,87]
[354665628,1740606662088,-277.73,0.002852,87]
[354665629,1740606662098,-277.73,0.002852,87]
[354665630,1740606662108,-277.73,0.002852,87]
[354665631,1740606662117,-3000.0,0.002889,120]
[354665632,1740606662126,-150.0,0.00291482,14]
[354665633,1740606662136,-150.0,0.00291482,14]
[354665634,1740606662145,-2000.0,0.00294572,14]
[354665635,1740606662155,-5000.0,0.002969,120]
[354665636,1740606662164,-1000000.0,0.003,120]
[354665637,1740606662173,-26496.15102563,0.00303765,30]
[354665638,1740606662182,-15170.82167149,0.00303765,30]
[354665639,1740606662191,-15170.82167149,0.00303765,30]
[354665640,1740606662200,-26496.15102563,0.00303765,30]
[354665641,1740606662209,-1500.0,0.00309936,14]
[354665642,1740606662219,-642.9235904,0.00337831,101]
[354665643,1740606662228,-179.47950942,0.00346719,60]
[354665644,1740606662237,-1220.80267729,0.003759,28]
[354665645,1740606662246,-2770.52686809,0.00382733,120]
[354665646,1740606662255,-160.0,0.00429114,3]
[354665647,1740606662265,-160.0,0.00442521,4]
[354665648,1740606662274,-719.0608304,0.0045,120]
[354665649,1740606662283,-160.0,0.00455928,5]
[354665650,1740606662293,-1220.80267729,0.004679,28]
[354665651,1740606662302,-160.0,0.00469336,6]
[354665652,1740606662311,-160.0,0.00482743,7]
[354665653,1740606662324,-3000.0,0.004889,120]
[354665654,1740606662334,-338.74,0.00489,120]
[354665655,1740606662344,-158.54,0.00489,60]
[354665656,1740606662353,-156.69,0.00489,120]
[354665657,1740606662363,-160.0,0.0049615,8]
[354665658,1740606662372,-5000.0,0.004969,120]
[354665659,1740606662382,-277.73,0.005085,87]
[354665660,1740606662391,-277.73,0.005085,87]
[354665661,1740606662401,-277.73,0.005085,87]
[354665662,1740606662412,-277.73,0.005085,87]
[354665663,1740606662423,-277.73,0.005085,87]
[354665664,1740606662434,-277.73,0.005085,87]
[354665665,1740606662443,-277.73,0.005085,87]
[354665666,1740606662452,-277.73,0.005085,87]
[354665667,1740606662462,-277.73,0.005085,87]
[354665668,1740606662471,-277.73,0.005085,87]
[354665669,1740606662481,-277.73,0.005085,87]
[354665670,1740606662490,-277.73,0.005085,87]
[354665671,1740606662500,-277.73,0.005085,87]
[354665672,1740606662509,-277.73,0.005085,87]
[354665673,1740606662519,-277.73,0.005085,87]
[354665674,1740606662529,-277.73,0.005085,87]
[354665675,1740606662539,-277.73,0.005085,87]
[354665676,1740606662548,-277.73,0.005085,87]
[354665677,1740606662557,-277.73,0.005085,87]
[354665678,1740606662569,-277.73,0.005085,87]
[354665679,1740606662578,-277.73,0.005085,87]
[354665680,1740606662586,-277.73,0.005085,87]
[354665681,1740606662595,-277.73,0.005085,87]
[354665682,1740606662604,-277.73,0.005085,87]
[354665683,1740606662613,-156.47,0.00509,120]
[354665684,1740606662622,-160.0,0.00509557,9]
[354665685,1740606662632,-179.47950942,0.00520078,60]
[354665686,1740606662641,-160.0,0.00522964,10]
[354665687,1740606662650,-160.0,0.00536371,11]
[354665688,1740606662659,-2770.52686809,0.00539767,120]
[354665689,1740606662672,-267.0,0.00548694,120]
[354665690,1740606662682,-267.0,0.00548694,120]
[354665691,1740606662691,-267.0,0.00548694,120]
[354665692,1740606662700,-267.0,0.00548694,120]
[354665693,1740606662711,-267.0,0.00548694,120]
[354665694,1740606662720,-267.0,0.00548694,120]
[354665695,1740606662729,-267.0,0.00548694,120]
[354665696,1740606662738,-267.0,0.00548694,120]
[354665697,1740606662748,-267.0,0.00548694,120]
[354665698,1740606662757,-267.0,0.00548694,120]
[354665699,1740606662766,-267.0,0.00548694,120]
[354665700,1740606662775,-267.0,0.00548694,120]
[354665701,1740606662784,-267.0,0.00548694,120]
[354665702,1740606662793,-267.0,0.00548694,120]
[354665703,1740606662803,-153.0,0.00548751,120]
[354665704,1740606662813,-153.0,0.00548751,120]
[354665705,1740606662826,-153.0,0.00548751,120]
[354665706,1740606662835,-153.0,0.00548751,120]
[354665707,1740606662845,-153.0,0.00548751,120]
[354665708,1740606662855,-153.0,0.00548751,120]
[354665709,1740606662864,-153.0,0.00548751,120]
[354665710,1740606662873,-153.0,0.00548751,120]
[354665711,1740606662883,-267.0,0.00549085,120]
[354665712,1740606662892,-267.0,0.00549085,120]
[354665713,1740606662901,-267.0,0.00549085,120]
[354665714,1740606662910,-267.0,0.00549085,120]
[354665715,1740606662920,-267.0,0.00549085,120]
[354665716,1740606662930,-267.0,0.00549085,120]
[354665717,1740606662939,-267.0,0.00549085,120]
[354665718,1740606662949,-267.0,0.00549085,120]
[354665719,1740606662959,-267.0,0.00549085,120]
[354665720,1740606662968,-267.0,0.00549085,120]
[354665721,1740606662978,-267.0,0.00549085,120]
[354665722,1740606662987,-267.0,0.00549085,120]
[354665723,1740606662997,-267.0,0.00549085,120]
[354665724,1740606663006,-267.0,0.00549085,120]